bitfinex/quotes_BTCUSD_20241014
["timestamp","ask_amount","ask_price","bid_price","bid_amount"]
[1728876913996,0.23772356,63750.0,63749.0,0.156865]
[1728876914225,0.23772356,63750.0,63749.0,0.53821394]
[1728876914226,0.23272356,63750.0,63749.0,0.53821394]
[1728876914431,0.156862,63750.0,63749.0,0.01087906]
[1728876914864,0.313699,63756.0,63746.0,0.00313704]
[1728876915072,0.313699,63756.0,63749.0,0.01087906]
[1728876915292,0.313699,63756.0,63742.0,0.23772356]
[1728876915293,0.005,63771.0,63752.0,0.6190725]
[1728876915538,0.005,63771.0,63728.0,0.23772356]
[1728876915539,0.000125,63772.0,63771.0,0.156811]
[1728876915753,0.000125,63772.0,63771.0,0.21617983]
[1728876915959,0.001318,63779.0,63778.0,0.53814194]
[1728876916380,0.001318,63779.0,63778.0,0.01061835]
[1728876916590,0.001318,63779.0,63772.0,0.299875]
[1728876916813,0.7808785,63773.0,63772.0,0.299875]
[1728876917029,0.313678,63760.0,63725.0,0.005]
[1728876917250,0.313678,63760.0,63733.0,0.16122401]
[1728876917251,0.38134894,63760.0,63733.0,0.16122401]
[1728876917505,0.23772356,63750.0,63735.0,0.16122401]
[1728876917721,0.23772356,63748.0,63740.0,0.313772]
[1728876917933,0.23772356,63745.0,63719.0,0.313877]
[1728876918170,0.38134894,63747.0,63724.0,0.313853]
[1728876918392,0.506223,63751.0,63720.0,0.005]
[1728876918393,0.23772356,63739.0,63720.0,0.005]
[1728876918616,0.23772356,63739.0,63713.0,0.48134894]
[1728876918617,0.23772356,63739.0,63725.0,0.17194286]
[1728876918875,0.23772356,63746.0,63737.0,0.156894]
[1728876918876,0.23772356,63738.0,63737.0,0.156894]
[1728876919080,0.23772356,63738.0,63725.0,0.16122401]
[1728876919081,0.23772356,63731.0,63730.0,0.156911]
[1728876919295,0.6190725,63746.0,63737.0,0.01061086]
[1728876919542,0.6190725,63746.0,63738.0,0.16002931]
[1728876919543,0.23772356,63739.0,63738.0,0.16002931]
[1728876919747,0.23772356,63746.0,63738.0,0.16122401]
[1728876919959,0.23772356,63746.0,63741.0,0.156884]
[1728876920187,0.000818,63750.0,63742.0,0.00313722]
[1728876920407,0.23772356,63749.0,63742.0,0.01370309]
[1728876920618,0.23772356,63749.0,63742.0,0.1749271]
[1728876920846,0.000818,63750.0,63749.0,0.156865]
[1728876921066,0.000818,63750.0,63749.0,0.154565]
[1728876921297,0.000818,63750.0,63749.0,0.15770167]
[1728876921515,0.000818,63750.0,63749.0,0.17320458]
[1728876921747,0.000818,63750.0,63749.0,0.16506791]
[1728876921976,0.000818,63750.0,63749.0,0.01013584]
[1728876922203,0.000818,63750.0,63749.0,0.005]
[1728876922667,0.000818,63750.0,63721.0,0.005]
[1728876922668,0.156878,63744.0,63721.0,0.005]
[1728876922874,0.156875,63745.0,63735.0,0.156898]
[1728876923084,0.23772356,63744.0,63736.0,0.16122401]
[1728876923304,0.000818,63750.0,63736.0,0.1717521]
[1728876923529,0.23772356,63743.0,63739.0,0.156887]
[1728876923744,0.158681,63750.0,63749.0,0.001]
[1728876923959,0.158681,63750.0,63749.0,0.16222401]
[1728876923960,0.001818,63750.0,63749.0,0.16222401]
[1728876924166,0.001818,63750.0,63749.0,0.001]
[1728876924588,0.15868,63750.0,63749.0,0.001]
[1728876925570,0.000818,63750.0,63736.0,0.31692805]
[1728876925789,0.001818,63750.0,63742.0,0.03166]
[1728876926030,0.001818,63750.0,63749.0,0.188525]
[1728876926243,0.001818,63750.0,63749.0,0.03166]
[1728876926516,0.15768,63750.0,63749.0,0.01041114]
[1728876926768,0.15868,63750.0,63749.0,0.01941114]
[1728876926991,0.15868,63750.0,63749.0,0.009]
[1728876931010,0.15868,63750.0,63723.0,0.23772356]
[1728876931011,0.005,63739.0,63727.0,0.00313795]
[1728876931295,0.156897,63736.0,63735.0,0.001636]
[1728876932437,0.161897,63736.0,63735.0,0.001636]
[1728876932905,0.16471961,63736.0,63735.0,0.001636]
[1728876933118,0.78852132,63736.0,63735.0,0.001636]
[1728876933331,0.156946,63716.0,63715.0,0.03166]
[1728876933751,0.156946,63716.0,63715.0,0.04097829]
[1728876933964,0.156948,63715.0,63714.0,0.03166]
[1728876934212,0.005,63722.0,63714.0,0.03166]
[1728876934213,0.1943,63736.0,63731.0,0.156907]
[1728876934420,0.1943,63736.0,63714.0,0.19602269]
[1728876934421,0.23772356,63725.0,63721.0,0.03166]
[1728876934626,0.1943,63736.0,63732.0,0.00740904]
[1728876934834,0.156904,63733.0,63732.0,0.00740904]
[1728876935058,0.156904,63733.0,63721.0,0.03166]
[1728876935059,0.000818,63751.0,63728.0,0.38134894]
[1728876935276,0.314539,63751.0,63738.0,0.15689]
[1728876935501,0.000818,63751.0,63739.0,0.00313722]
[1728876935714,0.314539,63751.0,63740.0,0.03166]
[1728876935932,0.000818,63751.0,63744.0,0.03166]
[1728876936153,0.000818,63751.0,63745.0,0.00313711]
[1728876936365,0.156872,63746.0,63745.0,0.01051912]
[1728876936579,0.156872,63746.0,63745.0,0.00738201]
[1728876936871,0.095618,63750.0,63744.0,0.03166]
[1728876937143,0.313731,63749.0,63744.0,0.03166]
[1728876937382,0.156875,63745.0,63744.0,0.03166]
[1728876938284,0.313741,63747.0,63744.0,0.03166]
[1728876938548,0.082618,63750.0,63744.0,0.03466]
[1728876938549,0.001,63745.0,63744.0,0.03466]
[1728876938775,0.157875,63745.0,63744.0,0.03466]
[1728876939206,0.157875,63745.0,63732.0,0.313809]
[1728876939207,0.31375,63745.0,63736.0,0.03166]
[1728876939468,0.156883,63742.0,63737.0,0.00832344]
[1728876939674,0.156883,63742.0,63737.0,0.03998344]
[1728876939675,0.156892,63738.0,63737.0,0.03998344]
[1728876939895,0.156892,63738.0,63737.0,0.03166]
[1728876940132,0.156928,63724.0,63714.0,0.23772356]
[1728876940350,0.005,63737.0,63721.0,0.23772356]
[1728876940351,0.156929,63723.0,63721.0,0.23772356]
[1728876940570,0.23772356,63741.0,63722.0,0.24086198]
[1728876940807,0.23772356,63733.0,63723.0,0.03479767]
[1728876941012,0.23772356,63733.0,63732.0,0.188567]
[1728876941220,0.23772356,63741.0,63735.0,0.156898]
[1728876941427,0.23772356,63741.0,63736.0,0.16003262]
[1728876941648,0.23772356,63741.0,63736.0,0.03479762]
[1728876941856,0.23772356,63741.0,63736.0,0.03166]
[1728876942072,0.39460856,63741.0,63736.0,0.03166]
[1728876942287,0.082618,63750.0,63736.0,0.03166]
[1728876942497,0.23772356,63748.0,63737.0,0.16436124]
[1728876942737,0.23772356,63748.0,63737.0,0.20431799]
[1728876942946,0.23772356,63748.0,63737.0,0.20118076]
[1728876943158,0.23772356,63738.0,63737.0,0.03995675]
[1728876943381,0.156892,63738.0,63737.0,0.03995675]
[1728876943589,0.156903,63734.0,63726.0,0.03166]
[1728876943808,0.156909,63731.0,63726.0,0.03166]
[1728876944043,0.156904,63733.0,63728.0,0.03166]
[1728876944265,0.005,63745.0,63728.0,0.03166]
[1728876944266,0.002,63739.0,63728.0,0.03166]
[1728876944506,0.002,63739.0,63718.0,0.23772356]
[1728876944507,0.55150156,63740.0,63736.0,0.001]
[1728876944722,0.156894,63737.0,63736.0,0.001]
[1728876944940,0.32094062,63737.0,63736.0,0.001]
[1728876945157,0.156921,63726.0,63725.0,0.03166]
[1728876945596,0.314813,63733.0,63725.0,0.03166]
[1728876945817,0.23772356,63732.0,63726.0,0.00313803]
[1728876946031,0.15691,63731.0,63726.0,0.00832525]
[1728876946244,0.001,63733.0,63726.0,0.00832525]
[1728876946456,0.001,63733.0,63725.0,0.03166]
[1728876946457,0.156908,63732.0,63725.0,0.03166]
[1728876946693,0.156912,63730.0,63727.0,0.00833887]
[1728876946901,0.001,63733.0,63726.0,0.00834121]
[1728876947148,0.001,63733.0,63724.0,0.03479818]
[1728876947361,0.23772356,63735.0,63727.0,0.00313818]
[1728876947575,0.156902,63734.0,63727.0,0.00313818]
[1728876947780,0.156905,63733.0,63727.0,0.00313818]
[1728876947996,0.23772356,63735.0,63727.0,0.00313818]
[1728876948211,0.313809,63733.0,63727.0,0.00313818]
[1728876948447,0.156915,63729.0,63728.0,0.00834028]
[1728876948675,0.96561056,63729.0,63728.0,0.0104391]
[1728876948898,0.96561056,63729.0,63723.0,0.001636]
[1728876948899,0.156926,63724.0,63723.0,0.001636]
[1728876949109,0.31815001,63724.0,63723.0,0.001636]
[1728876949551,0.156926,63724.0,63723.0,0.001636]
[1728876950054,0.18151627,63724.0,63723.0,0.001636]
[1728876950750,0.02459027,63724.0,63723.0,0.158565]
[1728876951175,0.0755,63729.0,63723.0,0.01213535]
[1728876951381,0.23772356,63734.0,63728.0,0.313831]
[1728876951589,0.23772356,63734.0,63729.0,0.00313793]
[1728876951824,0.23772356,63734.0,63732.0,0.156906]
[1728876952036,0.23772356,63734.0,63733.0,0.0104682]
[1728876952261,0.02458741,63735.0,63729.0,0.00313793]
[1728876952482,0.02458741,63735.0,63733.0,0.0104682]
[1728876952709,0.156902,63734.0,63729.0,0.00313793]
[1728876952935,0.313776,63740.0,63729.0,0.16004993]
[1728876953167,0.5,63734.0,63730.0,0.01047754]
[1728876953375,0.318738,63748.0,63730.0,0.01047754]
[1728876953604,0.156893,63738.0,63731.0,0.00313782]
[1728876953834,0.156893,63738.0,63727.0,0.03166]
[1728876953835,0.23772356,63735.0,63727.0,0.03166]
[1728876954047,0.156916,63728.0,63727.0,0.03166]
[1728876954554,0.156911,63730.0,63724.0,0.03166]
[1728876954764,0.1569,63735.0,63730.0,0.001]
[1728876955004,0.39462556,63734.0,63730.0,0.001]
[1728876955209,0.1569,63735.0,63727.0,0.16005505]
[1728876955418,0.156916,63729.0,63725.0,0.03166]
[1728876955653,0.5,63734.0,63725.0,0.03166]
[1728876955891,0.5,63734.0,63731.0,0.156907]
[1728876956174,0.23772356,63733.0,63725.0,0.188582]
[1728876956355,0.5,63734.0,63725.0,0.03166]
[1728876956570,0.5,63734.0,63727.0,0.004]
[1728876956992,0.5,63734.0,63733.0,0.156904]
[1728876957210,0.5,63734.0,63733.0,0.19170172]
[1728876957422,0.5,63734.0,63733.0,0.188564]
[1728876958256,0.5,63734.0,63733.0,0.189564]
[1728876958486,0.5,63734.0,63733.0,0.03266]
[1728876959716,0.5,63734.0,63733.0,0.03166]
[1728876959979,0.5,63734.0,63733.0,0.191564]
[1728876960372,0.5,63734.0,63733.0,0.20199511]
[1728876960815,0.5,63734.0,63733.0,0.77256806]
[1728876961033,0.000818,63750.0,63748.0,0.156867]
[1728876961249,0.000818,63750.0,63748.0,0.74461605]
[1728876961476,0.000818,63750.0,63748.0,0.74147947]
[1728876962122,0.23772356,63773.0,63772.0,0.188468]
[1728876962382,0.23772356,63773.0,63772.0,0.59281694]
[1728876962846,0.23772356,63773.0,63772.0,0.60812177]
[1728876962849,0.23772356,63783.0,63778.0,0.156793]
[1728876963097,0.23772356,63783.0,63778.0,0.59480194]
[1728876963355,0.23772356,63783.0,63778.0,0.35988883]
[1728876963605,0.00068614,63788.0,63778.0,0.36363799]
[1728876964582,0.00068614,63788.0,63778.0,0.38663799]
[1728876964848,0.002318,63779.0,63778.0,0.39563799]
[1728876965536,0.002318,63779.0,63778.0,0.37263799]
[1728876965974,0.002318,63779.0,63778.0,0.05462098]
[1728876966453,0.002318,63779.0,63778.0,0.05775645]
[1728876966664,0.002318,63779.0,63778.0,0.37577346]
[1728876966878,0.002318,63779.0,63778.0,0.37263799]
[1728876967522,0.001318,63779.0,63778.0,0.36363799]
[1728876967743,0.002318,63779.0,63778.0,0.37263799]
[1728876968162,0.001318,63779.0,63778.0,0.36363799]
[1728876968416,0.001318,63779.0,63778.0,0.20241398]
[1728876968628,0.002318,63779.0,63778.0,0.02296098]
[1728876969085,0.002318,63779.0,63778.0,0.34097799]
[1728876969293,0.002318,63779.0,63778.0,0.17975398]
[1728876969503,0.002318,63779.0,63778.0,0.34097799]
[1728876969925,0.002318,63779.0,63778.0,0.17975398]
[1728876970417,0.002318,63779.0,63778.0,0.17075398]
[1728876970418,0.001318,63779.0,63778.0,0.17075398]
[1728876970644,0.002318,63779.0,63778.0,0.02196098]
[1728876971311,0.001318,63779.0,63778.0,0.01396098]
[1728876971518,0.001318,63779.0,63778.0,0.17275398]
[1728876971741,0.001318,63779.0,63778.0,0.002]
[1728876971951,0.001318,63779.0,63778.0,0.17308648]
[1728876972172,0.001318,63779.0,63778.0,0.32315237]
[1728876972389,0.001318,63779.0,63778.0,0.3878352]
[1728876972605,0.001318,63779.0,63778.0,0.3858352]
[1728876972831,0.001318,63779.0,63778.0,0.17274073]
[1728876973279,0.001318,63779.0,63778.0,0.01594773]
[1728876973519,0.158109,63779.0,63778.0,0.01394773]
[1728876974024,0.156799,63776.0,63768.0,0.156817]
[1728876974247,0.001318,63779.0,63774.0,0.38134894]
[1728876974459,0.001318,63779.0,63778.0,0.156793]
[1728876974668,0.011318,63779.0,63778.0,0.17781016]
[1728876974876,0.011318,63779.0,63778.0,0.20633481]
[1728876975088,0.011318,63779.0,63778.0,0.20533481]
[1728876975089,0.001318,63779.0,63778.0,0.20533481]
[1728876975312,0.001318,63779.0,63778.0,0.36655882]
[1728876975568,0.011318,63779.0,63778.0,0.36655882]
[1728876975798,0.011318,63779.0,63778.0,0.36855882]
[1728876976015,0.011318,63779.0,63778.0,0.36655882]
[1728876976226,0.011318,63779.0,63778.0,0.39455882]
[1728876976457,0.011318,63779.0,63778.0,0.38955882]
[1728876976692,0.011318,63779.0,63778.0,9.39455882]
[1728876976909,0.001318,63779.0,63778.0,9.39655882]
[1728876977122,0.001318,63779.0,63778.0,9.39955882]
[1728876977500,0.001318,63779.0,63778.0,9.39155882]
[1728876977710,0.001318,63779.0,63778.0,9.39655882]
[1728876977916,0.002318,63779.0,63778.0,9.40855882]
[1728876978336,0.001,63782.0,63781.0,0.163786]
[1728876978539,0.001,63782.0,63781.0,0.72935895]
[1728876978812,0.001,63782.0,63781.0,0.7462327]
[1728876978976,0.001,63782.0,63781.0,0.7442327]
[1728876979129,0.001,63782.0,63781.0,0.7462327]
[1728876979346,0.001,63782.0,63781.0,0.7442327]
[1728876979543,0.001,63782.0,63781.0,0.7462327]
[1728876979751,0.001,63782.0,63781.0,0.7442327]
[1728876980004,0.001,63782.0,63781.0,0.7462327]
[1728876980430,0.001,63782.0,63781.0,0.7442327]
[1728876980675,0.002,63782.0,63781.0,0.7582327]
[1728876980886,0.002,63782.0,63781.0,0.7602327]
[1728876981099,0.002,63782.0,63781.0,0.7532327]
[1728876981300,0.001,63782.0,63781.0,0.7182327]
[1728876981493,0.002,63782.0,63781.0,0.7302327]
[1728876981732,0.002817,63782.0,63781.0,0.7302327]
[1728876982175,0.002817,63782.0,63781.0,0.56900869]
[1728876982386,0.002817,63782.0,63781.0,0.18765975]
[1728876982598,6.801e-05,63797.0,63781.0,0.57658175]
[1728876982812,6.801e-05,63797.0,63796.0,0.156749]
[1728876983026,6.801e-05,63797.0,63796.0,0.17352947]
[1728876983242,6.801e-05,63797.0,63796.0,0.16764974]
[1728876983649,6.801e-05,63797.0,63796.0,0.17078405]
[1728876983854,6.801e-05,63797.0,63796.0,0.33200806]
[1728876984064,6.801e-05,63797.0,63796.0,0.32887375]
[1728876984641,0.00106801,63797.0,63796.0,0.36587375]
[1728876984847,0.00106801,63797.0,63796.0,0.32887375]
[1728876985060,6.801e-05,63797.0,63796.0,0.32887375]
[1728876985262,6.801e-05,63797.0,63796.0,0.35187375]
[1728876986354,6.801e-05,63797.0,63796.0,0.34287375]
[1728876986772,6.801e-05,63797.0,63796.0,0.02490074]
[1728876987191,6.801e-05,63797.0,63796.0,0.01090074]
[1728876987416,6.801e-05,63797.0,63796.0,0.02490074]
[1728876987669,0.31886163,63797.0,63796.0,0.014]
[1728876987864,0.31886163,63797.0,63778.0,9.38134894]
[1728876987865,0.156774,63786.0,63778.0,9.38134894]
[1728876988073,0.156777,63785.0,63780.0,0.01479975]
[1728876988320,0.00082261,63784.0,63780.0,0.01479975]
[1728876988551,0.156786,63781.0,63780.0,0.01479975]
[1728876988813,0.585663,63783.0,63778.0,9.0]
[1728876988814,0.2721,63783.0,63778.0,9.0]
[1728876989063,0.156785,63782.0,63780.0,0.01479975]
[1728876989315,0.156785,63782.0,63778.0,9.0]
[1728876989316,0.156785,63782.0,63781.0,0.01479353]
[1728876989511,0.2721,63783.0,63781.0,0.01479353]
[1728876989744,0.43414662,63783.0,63778.0,9.0]
[1728876989953,0.156791,63779.0,63778.0,9.0]
[1728876990362,0.47479401,63782.0,63778.0,9.0]
[1728876990363,0.16122401,63782.0,63778.0,9.0]
[1728876990566,0.15679,63780.0,63778.0,9.0]
[1728876990986,0.156791,63779.0,63778.0,9.0]
[1728876991219,0.156791,63779.0,63778.0,8.8]
[1728876991220,0.31801501,63779.0,63778.0,8.8]
[1728876991398,0.32001501,63779.0,63778.0,8.8]
[1728876991644,0.31801501,63779.0,63778.0,8.8]
[1728876993063,0.35586012,63779.0,63778.0,8.3219]
[1728876993270,0.35586012,63779.0,63778.0,8.0438]
[1728876993452,0.35586012,63779.0,63778.0,7.85629111]
[1728876993699,0.45786012,63779.0,63778.0,7.43939111]
[1728876993959,0.45586012,63779.0,63778.0,7.40059111]
[1728876994169,0.43801501,63779.0,63778.0,7.40159111]
[1728876994654,0.42501501,63779.0,63778.0,7.40059111]
[1728876994873,0.42583201,63779.0,63778.0,7.40059111]
[1728876995917,0.43883201,63779.0,63778.0,7.40159111]
[1728876996172,0.5840645,63779.0,63778.0,7.40159111]
[1728876996637,0.62364024,63779.0,63778.0,7.36923211]
[1728876996849,0.63164024,63779.0,63778.0,7.37023211]
[1728876997084,0.46340775,63779.0,63778.0,7.37023211]
[1728876999224,0.96140775,63779.0,63778.0,7.37023211]
[1728876999434,0.96340775,63779.0,63778.0,7.37023211]
[1728876999861,0.95640775,63779.0,63778.0,7.37023211]
[1728877000075,0.95640775,63779.0,63778.0,7.36023211]
[1728877000076,0.86140775,63779.0,63778.0,7.36023211]
[1728877000498,0.87782447,63779.0,63778.0,7.36023211]
[1728877001355,0.86482447,63779.0,63778.0,7.35923211]
[1728877003123,0.84024873,63779.0,63778.0,7.35923211]
[1728877003326,0.90615811,63779.0,63778.0,7.36023211]
[1728877003743,0.89415811,63779.0,63778.0,7.35923211]
[1728877003953,0.89615811,63779.0,63778.0,7.35923211]
[1728877004159,0.90715811,63779.0,63778.0,7.36023211]
[1728877004361,1.00715811,63779.0,63778.0,7.36023211]
[1728877006119,1.03173441,63779.0,63778.0,7.36023211]
[1728877006733,1.02073441,63779.0,63778.0,7.35923211]
[1728877007139,1.03273441,63779.0,63778.0,7.36186611]
[1728877007578,1.02073441,63779.0,63778.0,7.36086611]
[1728877007787,0.96482503,63779.0,63778.0,7.36086611]
[1728877008058,0.97682503,63779.0,63778.0,7.36186611]
[1728877009180,0.96682503,63779.0,63778.0,7.36086611]
[1728877009678,0.98082503,63779.0,63778.0,7.36086611]
[1728877010189,0.97882503,63779.0,63778.0,7.36086611]
[1728877010436,0.55581002,63779.0,63778.0,7.43986611]
[1728877010640,0.50877186,63779.0,63778.0,7.43986611]
[1728877010887,0.44531698,63779.0,63778.0,7.43986611]
[1728877011098,0.46173433,63779.0,63778.0,7.43986611]
[1728877011635,0.61852533,63779.0,63778.0,7.43986611]
[1728877011871,0.46173433,63779.0,63778.0,7.43631794]
[1728877012117,0.55499333,63779.0,63778.0,7.43631794]
[1728877012781,0.69778433,63779.0,63778.0,7.43631794]
[1728877013287,0.68720803,63779.0,63778.0,7.43631794]
[1728877013500,0.68397638,63779.0,63778.0,7.43631794]
[1728877013780,0.66997638,63779.0,63778.0,7.43631794]
[1728877013977,0.62593822,63779.0,63778.0,7.43631794]
[1728877014709,0.46914722,63779.0,63778.0,7.43631794]
[1728877014917,0.51941722,63779.0,63778.0,7.59311094]
[1728877015133,0.50119087,63779.0,63778.0,7.79301094]
[1728877015352,0.48477352,63779.0,63778.0,7.79301094]
[1728877015559,0.28477352,63779.0,63778.0,7.79301094]
[1728877015777,0.20667352,63779.0,63778.0,7.79301094]
[1728877015991,0.20367352,63779.0,63778.0,7.79301094]
[1728877016424,0.20367352,63779.0,63778.0,7.79401094]
[1728877016845,0.49156425,63779.0,63778.0,7.79401094]
[1728877017996,0.49999925,63779.0,63778.0,7.63721794]
[1728877018427,0.65679025,63779.0,63778.0,7.63721794]
[1728877018692,0.52456594,63779.0,63778.0,7.63721794]
[1728877018900,0.68217394,63779.0,63778.0,7.63721794]
[1728877019101,0.68217394,63779.0,63778.0,7.35831794]
[1728877020362,0.52538294,63779.0,63778.0,7.35831794]
[1728877020780,0.68217394,63779.0,63778.0,7.35831794]
[1728877021835,0.90799276,63779.0,63778.0,7.35831794]
[1728877022049,0.91499276,63779.0,63778.0,7.35831794]
[1728877022269,1.01499276,63779.0,63778.0,7.35831794]
[1728877022682,0.84839795,63779.0,63778.0,7.35731794]
[1728877022894,0.68217394,63779.0,63778.0,7.35731794]
[1728877023079,0.66060725,63779.0,63778.0,7.35731794]
[1728877023525,0.65760725,63779.0,63778.0,7.35731794]
[1728877023734,0.50081625,63779.0,63778.0,7.35731794]
[1728877023924,0.51481625,63779.0,63778.0,7.35731794]
[1728877025225,0.65760725,63779.0,63778.0,7.35731794]
[1728877025438,0.67160725,63779.0,63778.0,7.35731794]
[1728877025667,0.51481625,63779.0,63778.0,7.35731794]
[1728877025892,0.67160725,63779.0,63778.0,7.35731794]
[1728877026144,0.50081625,63779.0,63778.0,7.35731794]
[1728877026412,0.53338459,63779.0,63778.0,7.75613495]
[1728877026622,0.23772356,63793.0,63778.0,7.63100195]
[1728877026835,0.23772356,63793.0,63792.0,0.56976794]
[1728877027057,0.000125,63810.0,63799.0,0.156742]
[1728877027264,0.000125,63829.0,63822.0,0.156685]
[1728877027265,0.01640989,63823.0,63822.0,0.156685]
[1728877027471,0.00094761,63829.0,63828.0,0.156671]
[1728877027472,0.000125,63829.0,63828.0,0.156671]
[1728877027708,0.000125,63829.0,63828.0,0.38134894]
[1728877027919,0.5,63829.0,63828.0,0.00776422]
[1728877028344,0.5,63829.0,63826.0,0.41300894]
[1728877028559,0.5,63829.0,63828.0,0.00776214]
[1728877028769,0.5,63829.0,63827.0,0.00776587]
[1728877029036,0.616668,63829.0,63828.0,0.00776214]
[1728877029251,0.156664,63831.0,63828.0,0.00776214]
[1728877029463,0.313305,63836.0,63826.0,0.41300894]
[1728877029681,0.156649,63837.0,63827.0,0.00313309]
[1728877029928,0.0005,63839.0,63838.0,0.156646]
[1728877030211,0.0005,63839.0,63836.0,0.38134894]
[1728877030485,0.0005,63839.0,63838.0,0.00945347]
[1728877030739,0.08423,63850.0,63844.0,0.156631]
[1728877031231,0.08423,63850.0,63844.0,0.17416969]
[1728877031523,0.08423,63850.0,63844.0,0.45839386]
[1728877031731,0.00649809,63853.0,63852.0,0.56596094]
[1728877032220,0.00649809,63853.0,63852.0,0.55233055]
[1728877032469,0.00649809,63853.0,63852.0,0.78895456]
[1728877033246,0.00649809,63853.0,63852.0,0.00936961]
[1728877033503,0.00649809,63853.0,63833.0,0.23772356]
[1728877033504,0.005,63851.0,63833.0,0.23772356]
[1728877033759,0.156618,63850.0,63849.0,0.23772356]
[1728877034001,0.156618,63850.0,63844.0,0.38134894]
[1728877034002,0.156629,63845.0,63844.0,0.38134894]
[1728877034263,0.31326,63845.0,63837.0,0.38134894]
[1728877034552,0.00749809,63853.0,63852.0,0.156612]
[1728877034805,0.00749809,63853.0,63852.0,0.53796094]
[1728877035015,0.00749809,63853.0,63852.0,0.69918495]
[1728877035645,0.00649809,63853.0,63852.0,0.69918495]
[1728877035860,0.01757945,63876.0,63858.0,0.156597]
[1728877036073,0.23772356,63875.0,63867.0,0.56792394]
[1728877036285,0.23772356,63875.0,63867.0,0.56592394]
[1728877036286,0.0802,63868.0,63867.0,0.56592394]
[1728877036494,0.0802,63868.0,63867.0,0.54292394]
[1728877036695,0.0802,63868.0,63867.0,0.56592394]
[1728877036904,0.01757945,63876.0,63875.0,0.156555]
[1728877037130,0.01757945,63876.0,63875.0,0.31777901]
[1728877038250,0.01757945,63876.0,63875.0,0.32277901]
[1728877038462,0.01757945,63876.0,63875.0,0.31777901]
[1728877038668,0.01257945,63876.0,63875.0,0.31777901]
[1728877039170,0.01257945,63876.0,63875.0,0.32277901]
[1728877039383,0.01257945,63876.0,63875.0,0.31777901]
[1728877040059,0.01357945,63876.0,63875.0,0.31877901]
[1728877040311,0.01357945,63876.0,63875.0,0.32377901]
[1728877040794,0.01357945,63876.0,63875.0,0.35043901]
[1728877041290,0.01357945,63876.0,63875.0,0.35852711]
[1728877041951,0.01357945,63876.0,63875.0,0.63192711]
[1728877042176,0.00091906,63886.0,63885.0,0.156531]
[1728877042397,0.00091906,63886.0,63885.0,0.54600963]
[1728877042609,0.00091906,63886.0,63885.0,0.54592274]
[1728877042829,0.00091906,63886.0,63885.0,0.01070861]
[1728877043051,0.15744706,63886.0,63885.0,0.01070861]
[1728877043265,0.00091906,63886.0,63885.0,0.16122401]
[1728877043483,0.00091906,63886.0,63883.0,0.03166]
[1728877043484,0.00291906,63886.0,63883.0,0.03166]
[1728877043717,0.00291906,63886.0,63885.0,0.01070773]
[1728877043932,0.00291906,63886.0,63885.0,0.16723873]
[1728877044163,0.00291906,63886.0,63885.0,0.01070773]
[1728877044373,0.00291906,63886.0,63885.0,0.16723873]
[1728877044581,0.00291906,63886.0,63883.0,0.03166]
[1728877044806,0.15944706,63886.0,63885.0,0.01070773]
[1728877045025,0.15944706,63886.0,63884.0,0.00803545]
[1728877045026,0.156531,63885.0,63884.0,0.00803545]
[1728877045260,0.156531,63885.0,63883.0,0.03166]
[1728877045509,0.00091906,63886.0,63884.0,0.23772356]
[1728877045718,0.00091906,63886.0,63885.0,0.54287994]
[1728877045925,0.00191906,63886.0,63885.0,0.55358767]
[1728877046379,0.00091906,63886.0,63885.0,0.71481168]
[1728877047117,1.906e-05,63886.0,63885.0,0.70713475]
[1728877047351,1.906e-05,63886.0,63885.0,0.54591074]
[1728877047571,0.02529223,63890.0,63885.0,0.54591074]
[1728877047782,0.02529223,63890.0,63887.0,0.156526]
[1728877048009,0.02529223,63890.0,63885.0,0.01067403]
[1728877048010,0.00082261,63889.0,63885.0,0.01067403]
[1728877048221,0.00082261,63889.0,63880.0,0.03166]
[1728877048222,0.02479223,63890.0,63888.0,0.23772356]
[1728877048427,0.02479223,63890.0,63886.0,0.38134894]
[1728877048428,0.02449223,63890.0,63886.0,0.38134894]
[1728877048632,0.02439223,63890.0,63886.0,0.38134894]
[1728877048883,0.02399223,63890.0,63886.0,0.38134894]
[1728877049130,0.02389223,63890.0,63887.0,0.39894757]
[1728877049389,0.02389223,63890.0,63889.0,0.156521]
[1728877049390,0.02339223,63890.0,63889.0,0.156521]
[1728877049647,0.02309223,63890.0,63889.0,0.32087491]
[1728877049857,0.02889223,63890.0,63889.0,0.34940501]
[1728877050294,0.02239223,63890.0,63889.0,0.34940501]
[1728877050529,0.02209223,63890.0,63889.0,0.34940501]
[1728877050764,0.02789223,63890.0,63889.0,0.34940501]
[1728877050976,0.02779223,63890.0,63889.0,0.34940501]
[1728877051183,0.02749223,63890.0,63889.0,0.34940501]
[1728877052010,0.02749223,63890.0,63889.0,0.188181]
[1728877052013,0.02739223,63890.0,63888.0,0.03166]
[1728877052221,0.02139223,63890.0,63888.0,0.03166]
[1728877052436,0.02139223,63890.0,63883.0,0.03166]
[1728877052655,0.17891123,63890.0,63889.0,0.01]
[1728877052861,0.02239223,63890.0,63889.0,0.01]
[1728877053078,0.02139223,63890.0,63886.0,0.156528]
[1728877053282,0.02139223,63890.0,63887.0,0.156525]
[1728877053491,0.02339223,63890.0,63889.0,0.156521]
[1728877053707,0.01839223,63890.0,63889.0,0.191311]
[1728877053916,0.01639223,63890.0,63889.0,0.19928361]
[1728877054601,0.01639223,63890.0,63889.0,0.19615361]
[1728877055234,0.01639223,63890.0,63889.0,0.03963261]
[1728877055235,0.01721223,63890.0,63889.0,0.03963261]
[1728877055691,0.01721223,63890.0,63889.0,0.00797261]
[1728877055901,0.17873123,63890.0,63889.0,0.00797261]
[1728877056109,0.17873123,63890.0,63881.0,0.1882]
[1728877056110,0.02221223,63890.0,63881.0,0.1882]
[1728877056329,0.17373223,63890.0,63882.0,0.16722347]
[1728877056535,0.156521,63889.0,63882.0,0.01068647]
[1728877056741,0.01821223,63890.0,63883.0,0.156534]
[1728877057221,0.005,63888.0,63869.0,0.23772356]
[1728877057441,0.156545,63879.0,63878.0,0.23772356]
[1728877057663,0.02221223,63890.0,63878.0,0.26938356]
[1728877057887,0.02221223,63890.0,63889.0,0.156521]
[1728877058795,0.01721223,63890.0,63889.0,0.156521]
[1728877059226,0.03121223,63890.0,63888.0,0.0775]
[1728877059671,0.01721223,63890.0,63888.0,0.0775]
[1728877060139,0.02321223,63890.0,63889.0,0.001]